[Event "*** Titled Tuesday 3|2 Blitz (Early)"]
[Site "Chess.com"]
[Date "2016.12.06"]
[Round "7"]
[White "Vrolijk"]
[Black "jncool68"]
[Result "1-0"]
[WhiteElo "2232"]
[BlackElo "2495"]
[TimeControl "180+2"]
[EndTime "12:31:05 PST"]
[Termination "Vrolijk won by resignation"]

1. d4 {[%clk 0:03:02]} 1... Nf6 {[%clk 0:02:59.5]} 2. c4 {[%clk 0:03:02.8]} 2...
e6 {[%clk 0:03:00.7]} 3. Nf3 {[%clk 0:03:03.6]} 3... Bb4+ {[%clk 0:03:01.6]} 4.
Nbd2 {[%clk 0:03:04.2]} 4... O-O {[%clk 0:03:01.9]} 5. a3 {[%clk 0:03:04.8]}
5... Be7 {[%clk 0:03:03.5]} 6. e4 {[%clk 0:03:05.2]} 6... d6 {[%clk 0:03:04.7]}
7. Be2 {[%clk 0:03:02.6]} 7... e5 {[%clk 0:03:05.7]} 8. O-O {[%clk 0:03:00.7]}
8... exd4 {[%clk 0:03:04.7]} 9. Nxd4 {[%clk 0:03:00.7]} 9... Nfd7 {[%clk
0:03:05.9]} 10. Nb1 {[%clk 0:03:00.9]} 10... Bf6 {[%clk 0:03:05.3]} 11. Nc3
{[%clk 0:03:01]} 11... Nc6 {[%clk 0:03:06.4]} 12. Be3 {[%clk 0:03:00.4]} 12...
Re8 {[%clk 0:03:02.5]} 13. Rc1 {[%clk 0:02:50.7]} 13... Nc5 {[%clk 0:02:59.3]}
14. f3 {[%clk 0:02:42.4]} 14... Ne6 {[%clk 0:02:57.5]} 15. Nf5 {[%clk 0:02:33]}
15... g6 {[%clk 0:02:57.5]} 16. Nh6+ {[%clk 0:02:31]} 16... Kg7 {[%clk
0:02:56.3]} 17. Ng4 {[%clk 0:02:30.2]} 17... Bd4 {[%clk 0:02:56.9]} 18. Qd2
{[%clk 0:02:24.5]} 18... Qg5 {[%clk 0:02:50.5]} 19. Bxd4+ {[%clk 0:02:12.6]}
19... Ncxd4 {[%clk 0:02:51.3]} 20. Qxg5 {[%clk 0:02:12.7]} 20... Nxg5 {[%clk
0:02:52.5]} 21. Ne3 {[%clk 0:01:54.9]} 21... c5 {[%clk 0:02:53.4]} 22. Kf2
{[%clk 0:01:52.3]} 22... Nge6 {[%clk 0:02:51.2]} 23. Rfd1 {[%clk 0:01:52]} 23...
Bd7 {[%clk 0:02:50.2]} 24. Ncd5 {[%clk 0:01:44.9]} 24... Rac8 {[%clk 0:02:50.1]}
25. Bf1 {[%clk 0:01:41.5]} 25... Bc6 {[%clk 0:02:50.5]} 26. Nc3 {[%clk
0:01:42.4]} 26... a6 {[%clk 0:02:50.4]} 27. Ne2 {[%clk 0:01:43.1]} 27... b5
{[%clk 0:02:50.9]} 28. Nxd4 {[%clk 0:01:37.8]} 28... Nxd4 {[%clk 0:02:52]} 29.
Nc2 {[%clk 0:01:37.8]} 29... Nb3 {[%clk 0:02:50.1]} 30. Rb1 {[%clk 0:01:38.8]}
30... Re6 {[%clk 0:02:47.8]} 31. Ne3 {[%clk 0:01:19]} 31... Nd4 {[%clk
0:02:47.4]} 32. b4 {[%clk 0:01:10.3]} 32... f5 {[%clk 0:02:43]} 33. exf5 {[%clk
0:01:10.9]} 33... gxf5 {[%clk 0:02:44.1]} 34. Rxd4 {[%clk 0:01:07]} 34... cxd4
{[%clk 0:02:44.6]} 35. Nxf5+ {[%clk 0:01:08.2]} 35... Kf8 {[%clk 0:02:39.4]} 36.
Nxd4 {[%clk 0:01:09.2]} 36... Rh6 {[%clk 0:02:31.4]} 37. cxb5 {[%clk 0:00:52.9]}
37... axb5 {[%clk 0:02:31.3]} 38. Rc1 {[%clk 0:00:50.5]} 38... Bd7 {[%clk
0:02:32.1]} 39. Rxc8+ {[%clk 0:00:51.1]} 39... Bxc8 {[%clk 0:02:34]} 40. Nxb5
{[%clk 0:00:52.6]} 40... Ke7 {[%clk 0:02:31.9]} 41. h3 {[%clk 0:00:52.5]} 41...
Kd7 {[%clk 0:02:25.9]} 42. Nd4 {[%clk 0:00:53.2]} 42... Rh5 {[%clk 0:02:22.5]}
43. Bc4 {[%clk 0:00:51.2]} 43... Kc7 {[%clk 0:02:20.3]} 44. f4 {[%clk
0:00:50.5]} 44... Bb7 {[%clk 0:02:11.9]} 45. f5 {[%clk 0:00:40.7]} 45... Rh6
{[%clk 0:02:12.9]} 46. Be6 {[%clk 0:00:37.2]} 46... Be4 {[%clk 0:02:10.4]} 47.
Kg3 {[%clk 0:00:26.8]} 47... Rf6 {[%clk 0:02:10.5]} 48. Bb3 {[%clk 0:00:23.5]}
48... d5 {[%clk 0:02:09.2]} 49. Kf4 {[%clk 0:00:24.2]} 49... Bxg2 {[%clk
0:02:09.2]} 50. Ke5 {[%clk 0:00:24.9]} 50... Ra6 {[%clk 0:02:09.6]} 51. f6
{[%clk 0:00:23.6]} 51... Kd7 {[%clk 0:02:10.2]} 52. a4 {[%clk 0:00:24.8]} 52...
Bxh3 {[%clk 0:02:06.8]} 53. Bxd5 {[%clk 0:00:25.3]} 53... Rxa4 {[%clk
0:02:04.8]} 54. Bc6+ {[%clk 0:00:25.5]} 54... Kd8 {[%clk 0:02:02.7]} 55. Bxa4
{[%clk 0:00:26]} 55... h5 {[%clk 0:02:04.3]} 56. Nf5 {[%clk 0:00:24.8]} 56...
Bf1 {[%clk 0:02:01.8]} 57. f7 {[%clk 0:00:25.5]} 1-0

[Event "*** Titled Tuesday 3|2 Blitz (Early)"]
[Site "Chess.com"]
[Date "2016.12.06"]
[Round "7"]
[White "renanreis"]
[Black "PowerThinking2650"]
[Result "0-1"]
[WhiteElo "2004"]
[BlackElo "2140"]
[TimeControl "180+2"]
[EndTime "12:31:31 PST"]
[Termination "PowerThinking2650 won on time"]

1. e4 {[%clk 0:02:51.6]} 1... e6 {[%clk 0:03:00.7]} 2. d4 {[%clk 0:02:51.7]}
2... d5 {[%clk 0:03:01.9]} 3. Nc3 {[%clk 0:02:46.4]} 3... Nf6 {[%clk 0:03:01.8]}
4. Bg5 {[%clk 0:02:43.3]} 4... dxe4 {[%clk 0:03:02.1]} 5. Nxe4 {[%clk
0:02:43.7]} 5... Nbd7 {[%clk 0:03:03.3]} 6. Nxf6+ {[%clk 0:02:40.3]} 6... Nxf6
{[%clk 0:03:04.1]} 7. Nf3 {[%clk 0:02:41.6]} 7... Be7 {[%clk 0:03:03.2]} 8. Bd3
{[%clk 0:02:42.6]} 8... b6 {[%clk 0:03:02.2]} 9. Ne5 {[%clk 0:02:38.6]} 9... O-O
{[%clk 0:02:46.9]} 10. Nc6 {[%clk 0:02:38.6]} 10... Qd6 {[%clk 0:02:46]} 11.
Nxe7+ {[%clk 0:02:36.2]} 11... Qxe7 {[%clk 0:02:46.9]} 12. Qf3 {[%clk
0:02:30.1]} 12... Bd7 {[%clk 0:02:45.1]} 13. O-O {[%clk 0:02:24.8]} 13... h6
{[%clk 0:02:45.3]} 14. Bxf6 {[%clk 0:02:24.9]} 14... Qxf6 {[%clk 0:02:45.8]} 15.
Qxf6 {[%clk 0:02:23]} 15... gxf6 {[%clk 0:02:47]} 16. Rfe1 {[%clk 0:02:16.5]}
16... f5 {[%clk 0:02:46.5]} 17. Rad1 {[%clk 0:02:03.3]} 17... Bc6 {[%clk
0:02:46.3]} 18. f3 {[%clk 0:02:02.5]} 18... Rfd8 {[%clk 0:02:46.6]} 19. c3
{[%clk 0:02:02.2]} 19... Kg7 {[%clk 0:02:46.4]} 20. Kf2 {[%clk 0:02:02.4]} 20...
Kf6 {[%clk 0:02:47.6]} 21. Bc2 {[%clk 0:01:55]} 21... a5 {[%clk 0:02:45]} 22.
Re5 {[%clk 0:01:52.5]} 22... a4 {[%clk 0:02:43.6]} 23. Rde1 {[%clk 0:01:43.9]}
23... a3 {[%clk 0:02:40.1]} 24. b3 {[%clk 0:01:44.3]} 24... h5 {[%clk
0:02:38.2]} 25. Bd3 {[%clk 0:01:31.8]} 25... h4 {[%clk 0:02:35.8]} 26. Bc4
{[%clk 0:01:26.2]} 26... Bb7 {[%clk 0:02:16.7]} 27. g4 {[%clk 0:00:56.8]} 27...
hxg3+ {[%clk 0:02:15.9]} 28. hxg3 {[%clk 0:00:58.7]} 28... Rh8 {[%clk
0:02:16.4]} 29. Kg2 {[%clk 0:00:47.7]} 29... Rag8 {[%clk 0:02:13.9]} 30. Bd3
{[%clk 0:00:06.8]} 30... f4 {[%clk 0:02:13.3]} 31. g4 {[%clk 0:00:06.4]} 31...
Rxg4+ {[%clk 0:02:13.5]} 32. Kf1 {[%clk 0:00:06.8]} 32... Bxf3 {[%clk
0:02:11.6]} 33. Be4 {[%clk 0:00:05.9]} 33... Rh1+ {[%clk 0:01:56.7]} 34. Kf2
{[%clk 0:00:06.6]} 34... Rxe1 {[%clk 0:01:41.3]} 35. Bxf3 {[%clk 0:00:07.4]}
35... Reg1 {[%clk 0:01:38.1]} 36. Bxg4 {[%clk 0:00:07.9]} 36... Rxg4 {[%clk
0:01:38.9]} 37. Rb5 {[%clk 0:00:05.4]} 37... Rh4 {[%clk 0:01:39.1]} 38. Kg2
{[%clk 0:00:05.7]} 38... f3+ {[%clk 0:01:32.3]} 39. Kxf3 {[%clk 0:00:04]} 39...
Rh2 {[%clk 0:01:33.4]} 40. d5 {[%clk 0:00:02.3]} 40... exd5 {[%clk 0:01:32.2]}
41. Rxd5 {[%clk 0:00:04.2]} 41... Rxa2 {[%clk 0:01:33.4]} 42. Rd7 {[%clk
0:00:03.5]} 42... Ra1 {[%clk 0:01:30]} 43. Rxc7 {[%clk 0:00:04.4]} 43... a2
{[%clk 0:01:31.1]} 44. Ra7 {[%clk 0:00:02.3]} 44... Rf1+ {[%clk 0:01:31.7]} 45.
Ke2 {[%clk 0:00:02.8]} 45... a1=Q {[%clk 0:01:33.6]} 0-1

[Event "*** Titled Tuesday 3|2 Blitz (Early)"]
[Site "Chess.com"]
[Date "2016.12.06"]
[Round "7"]
[White "Andrejkin"]
[Black "MyleneFarmer"]
[Result "0-1"]
[WhiteElo "2183"]
[BlackElo "2374"]
[TimeControl "180+2"]
[EndTime "12:31:33 PST"]
[Termination "MyleneFarmer won by resignation"]

1. e4 {[%clk 0:03:00]} 1... c5 {[%clk 0:02:57.9]} 2. Nf3 {[%clk 0:02:58.9]} 2...
d6 {[%clk 0:02:58.9]} 3. d4 {[%clk 0:02:59.5]} 3... cxd4 {[%clk 0:03:00.5]} 4.
Nxd4 {[%clk 0:03:01.4]} 4... Nf6 {[%clk 0:03:01.9]} 5. Nc3 {[%clk 0:03:02.5]}
5... g6 {[%clk 0:03:03.6]} 6. f3 {[%clk 0:03:03.8]} 6... Bg7 {[%clk 0:03:05.1]}
7. Be3 {[%clk 0:03:05]} 7... O-O {[%clk 0:03:06.6]} 8. Qd2 {[%clk 0:03:06.4]}
8... Nc6 {[%clk 0:03:08]} 9. O-O-O {[%clk 0:03:07.5]} 9... d5 {[%clk 0:03:09.5]}
10. Kb1 {[%clk 0:03:08.8]} 10... Nxd4 {[%clk 0:02:56.4]} 11. e5 {[%clk
0:02:55.2]} 11... Nf5 {[%clk 0:02:57.1]} 12. exf6 {[%clk 0:02:56.6]} 12... exf6
{[%clk 0:02:57.2]} 13. Nxd5 {[%clk 0:02:55.9]} 13... Be6 {[%clk 0:02:47.1]} 14.
Bc4 {[%clk 0:02:48.4]} 14... Nxe3 {[%clk 0:02:47.2]} 15. Qxe3 {[%clk 0:02:47.4]}
15... f5 {[%clk 0:02:41.7]} 16. c3 {[%clk 0:02:45.2]} 16... Qh4 {[%clk
0:02:38.4]} 17. Bb3 {[%clk 0:02:43.5]} 17... Rfd8 {[%clk 0:02:29.1]} 18. Nc7
{[%clk 0:02:35.5]} 18... Bxb3 {[%clk 0:02:18.1]} 19. axb3 {[%clk 0:02:34.3]}
19... Rac8 {[%clk 0:02:12.9]} 20. Rxd8+ {[%clk 0:02:07.2]} 20... Qxd8 {[%clk
0:02:13.9]} 21. Nb5 {[%clk 0:01:58.5]} 21... a6 {[%clk 0:02:12.9]} 22. Nd4
{[%clk 0:01:59.2]} 22... Qd5 {[%clk 0:02:01.7]} 23. Rd1 {[%clk 0:01:53.2]} 23...
Bxd4 {[%clk 0:02:02]} 24. Rxd4 {[%clk 0:01:53.6]} 24... Qxb3 {[%clk 0:02:01.7]}
25. Rb4 {[%clk 0:01:52.5]} 25... Qd1+ {[%clk 0:02:00.4]} 26. Ka2 {[%clk
0:01:52.7]} 26... b5 {[%clk 0:01:58.7]} 27. g4 {[%clk 0:01:45]} 27... a5 {[%clk
0:01:56.8]} 28. Rd4 {[%clk 0:01:40.3]} 28... Qc2 {[%clk 0:01:46.9]} 29. gxf5
{[%clk 0:01:33.6]} 29... b4 {[%clk 0:01:48]} 30. fxg6 {[%clk 0:01:25.2]} 30...
hxg6 {[%clk 0:01:43.9]} 31. cxb4 {[%clk 0:01:17.1]} 31... axb4 {[%clk
0:01:40.8]} 32. Qe4 {[%clk 0:01:07]} 32... b3+ {[%clk 0:01:21.6]} 33. Ka3 {[%clk
0:00:53.4]} 33... Qxh2 {[%clk 0:01:20.1]} 34. Qb7 {[%clk 0:00:45]} 34... Rb8
{[%clk 0:01:09.9]} 35. Qc6 {[%clk 0:00:18.2]} 35... Qg1 {[%clk 0:00:54.6]} 36.
Rd8+ {[%clk 0:00:05]} 36... Rxd8 {[%clk 0:00:53.7]} 37. Kxb3 {[%clk 0:00:06.9]}
37... Qe3+ {[%clk 0:00:52.3]} 38. Ka2 {[%clk 0:00:07.4]} 38... Qe6+ {[%clk
0:00:52.6]} 39. Kb1 {[%clk 0:00:09.3]} 39... Qxc6 {[%clk 0:00:52.8]} 0-1

[Event "*** Titled Tuesday 3|2 Blitz (Early)"]
[Site "Chess.com"]
[Date "2016.12.06"]
[Round "7"]
[White "calemcc"]
[Black "Nachsueb"]
[Result "0-1"]
[WhiteElo "2099"]
[BlackElo "2105"]
[TimeControl "180+2"]
[EndTime "12:31:51 PST"]
[Termination "Nachsueb won by checkmate"]

1. d4 {[%clk 0:02:26.5]} 1... Nf6 {[%clk 0:02:59.6]} 2. c4 {[%clk 0:02:28.4]}
2... g6 {[%clk 0:03:00.3]} 3. f3 {[%clk 0:02:24.3]} 3... c5 {[%clk 0:02:59.9]}
4. d5 {[%clk 0:02:23.8]} 4... e6 {[%clk 0:03:00]} 5. e4 {[%clk 0:02:25.3]} 5...
exd5 {[%clk 0:03:01]} 6. cxd5 {[%clk 0:02:27.2]} 6... d6 {[%clk 0:03:02]} 7. Nc3
{[%clk 0:02:28]} 7... Bg7 {[%clk 0:03:03.4]} 8. Bg5 {[%clk 0:02:28.2]} 8... O-O
{[%clk 0:03:00.7]} 9. Qd2 {[%clk 0:02:28.9]} 9... Nbd7 {[%clk 0:02:56.3]} 10. h4
{[%clk 0:02:29.3]} 10... Qe8 {[%clk 0:02:46.5]} 11. O-O-O {[%clk 0:02:29.4]}
11... a6 {[%clk 0:02:46]} 12. Bh6 {[%clk 0:02:29.4]} 12... b5 {[%clk 0:02:34.7]}
13. h5 {[%clk 0:02:29]} 13... Nxh5 {[%clk 0:02:22.9]} 14. Rxh5 {[%clk
0:02:27.2]} 14... gxh5 {[%clk 0:02:23.3]} 15. Bd3 {[%clk 0:02:12.8]} 15... Qe5
{[%clk 0:01:41.4]} 16. Nge2 {[%clk 0:02:08.3]} 16... c4 {[%clk 0:01:38.7]} 17.
Bb1 {[%clk 0:02:05.7]} 17... b4 {[%clk 0:01:35.2]} 18. Na4 {[%clk 0:02:05.5]}
18... Nc5 {[%clk 0:01:25.8]} 19. Nxc5 {[%clk 0:02:02.5]} 19... dxc5 {[%clk
0:01:27.4]} 20. Bxg7 {[%clk 0:02:01.2]} 20... Qxg7 {[%clk 0:01:27.8]} 21. Nf4
{[%clk 0:02:01]} 21... c3 {[%clk 0:01:14.8]} 22. bxc3 {[%clk 0:01:48.4]} 22...
bxc3 {[%clk 0:01:16.7]} 23. Qe3 {[%clk 0:01:45.1]} 23... Rb8 {[%clk 0:01:10]}
24. Nxh5 {[%clk 0:01:41.4]} 24... c2 {[%clk 0:00:42]} 25. Bxc2 {[%clk
0:01:40.7]} 25... Qb2+ {[%clk 0:00:42.3]} 26. Kd2 {[%clk 0:01:42.2]} 26... Qd4+
{[%clk 0:00:43.4]} 27. Qxd4 {[%clk 0:01:38.1]} 27... cxd4 {[%clk 0:00:45.3]} 28.
e5 {[%clk 0:01:35.2]} 28... Rd8 {[%clk 0:00:28.5]} 29. Be4 {[%clk 0:01:34.8]}
29... Rb2+ {[%clk 0:00:28.1]} 30. Kd3 {[%clk 0:01:35.5]} 30... Rxa2 {[%clk
0:00:27.5]} 31. Kxd4 {[%clk 0:01:36.6]} 31... Rxg2 {[%clk 0:00:27.3]} 32. Rc1
{[%clk 0:01:37.4]} 32... Bb7 {[%clk 0:00:25.3]} 33. Nf4 {[%clk 0:01:23.9]} 33...
Rd2+ {[%clk 0:00:22.8]} 34. Ke3 {[%clk 0:01:24.4]} 34... Rb2 {[%clk 0:00:20.6]}
35. Rc7 {[%clk 0:01:19.6]} 35... a5 {[%clk 0:00:20.9]} 36. e6 {[%clk 0:01:14.4]}
36... fxe6 {[%clk 0:00:20.5]} 37. Nxe6 {[%clk 0:01:15.5]} 37... Rxd5 {[%clk
0:00:14.1]} 38. Rg7+ {[%clk 0:01:15]} 38... Kh8 {[%clk 0:00:14.9]} 39. Rxh7+
{[%clk 0:01:15.5]} 39... Kg8 {[%clk 0:00:16.4]} 40. Rg7+ {[%clk 0:01:15]} 40...
Kh8 {[%clk 0:00:17.9]} 41. Rxb7 {[%clk 0:01:12]} 41... Rxb7 {[%clk 0:00:14.8]}
42. Bxd5 {[%clk 0:01:12.8]} 42... Rb5 {[%clk 0:00:14.1]} 43. Kd4 {[%clk
0:01:12.5]} 43... a4 {[%clk 0:00:14.8]} 44. Nc5 {[%clk 0:01:11.4]} 44... a3
{[%clk 0:00:15.6]} 45. Na4 {[%clk 0:01:10.2]} 45... Rb4+ {[%clk 0:00:15]} 46.
Kc3 {[%clk 0:01:09.7]} 46... Rxa4 {[%clk 0:00:16.3]} 47. Kb3 {[%clk 0:01:11.3]}
47... a2 {[%clk 0:00:14.6]} 48. Kxa4 {[%clk 0:01:12.9]} 48... a1=Q+ {[%clk
0:00:15.2]} 49. Kb5 {[%clk 0:01:14.2]} 49... Qe5 {[%clk 0:00:15.5]} 50. Kc4
{[%clk 0:01:15.2]} 50... Kg7 {[%clk 0:00:16.9]} 51. Be4 {[%clk 0:01:16.8]} 51...
Kf6 {[%clk 0:00:16.3]} 52. Kd3 {[%clk 0:01:18.7]} 52... Ke7 {[%clk 0:00:16.2]}
53. Kc4 {[%clk 0:01:20.6]} 53... Kd6 {[%clk 0:00:17.4]} 54. Kb4 {[%clk 0:01:22]}
54... Qd4+ {[%clk 0:00:17.9]} 55. Kb3 {[%clk 0:01:23]} 55... Kc5 {[%clk
0:00:19.1]} 56. Kc2 {[%clk 0:01:24.9]} 56... Kb4 {[%clk 0:00:19.9]} 57. Kc1
{[%clk 0:01:25.1]} 57... Kc3 {[%clk 0:00:21]} 58. Kb1 {[%clk 0:01:25.8]} 58...
Qd1+ {[%clk 0:00:20.7]} 59. Ka2 {[%clk 0:01:27.3]} 59... Qa4+ {[%clk 0:00:21.9]}
60. Kb1 {[%clk 0:01:28.4]} 60... Qb4+ {[%clk 0:00:23.6]} 61. Kc1 {[%clk
0:01:29.9]} 61... Qb2+ {[%clk 0:00:25.3]} 62. Kd1 {[%clk 0:01:31.4]} 62... Qd2#
{[%clk 0:00:27.2]} 0-1

[Event "*** Titled Tuesday 3|2 Blitz (Early)"]
[Site "Chess.com"]
[Date "2016.12.06"]
[Round "7"]
[White "pastouche06"]
[Black "Morshynska"]
[Result "1-0"]
[WhiteElo "2311"]
[BlackElo "2122"]
[TimeControl "180+2"]
[EndTime "12:32:08 PST"]
[Termination "pastouche06 won by resignation"]

1. d4 {[%clk 0:03:02]} 1... Nf6 {[%clk 0:03:00.7]} 2. c4 {[%clk 0:03:02.1]} 2...
e6 {[%clk 0:03:01.9]} 3. Nc3 {[%clk 0:03:03.4]} 3... Bb4 {[%clk 0:03:02.3]} 4.
e3 {[%clk 0:03:04.7]} 4... b6 {[%clk 0:03:01.8]} 5. Ne2 {[%clk 0:03:05.1]} 5...
Ba6 {[%clk 0:03:02.5]} 6. Ng3 {[%clk 0:03:04]} 6... Bxc3+ {[%clk 0:03:02.2]} 7.
bxc3 {[%clk 0:03:04.1]} 7... Nc6 {[%clk 0:02:58.9]} 8. Bd3 {[%clk 0:02:58.7]}
8... Na5 {[%clk 0:02:57.9]} 9. Qe2 {[%clk 0:02:57.4]} 9... Qc8 {[%clk
0:02:47.5]} 10. e4 {[%clk 0:02:53.4]} 10... d6 {[%clk 0:02:33.9]} 11. Bg5 {[%clk
0:02:52.8]} 11... Nd7 {[%clk 0:02:21.5]} 12. Nh5 {[%clk 0:02:37.3]} 12... f6
{[%clk 0:01:49]} 13. Nxg7+ {[%clk 0:02:14.2]} 13... Kf7 {[%clk 0:01:49]} 14. Bh6
{[%clk 0:02:15.4]} 14... Ke7 {[%clk 0:01:34]} 15. O-O {[%clk 0:01:33.5]} 15...
Qg8 {[%clk 0:01:06.3]} 16. f4 {[%clk 0:01:21.6]} 16... Qf7 {[%clk 0:01:02.9]}
17. f5 {[%clk 0:01:19.2]} 17... e5 {[%clk 0:00:58.9]} 18. c5 {[%clk 0:01:14.6]}
18... Bxd3 {[%clk 0:00:57.5]} 19. cxd6+ {[%clk 0:01:15.6]} 19... cxd6 {[%clk
0:00:55.3]} 20. Qxd3 {[%clk 0:01:17.5]} 20... Qc4 {[%clk 0:00:50.1]} 21. Qg3
{[%clk 0:01:05.2]} 21... exd4 {[%clk 0:00:31.6]} 22. cxd4 {[%clk 0:01:02.5]}
22... Qxd4+ {[%clk 0:00:33.5]} 23. Kh1 {[%clk 0:01:03.7]} 23... Ne5 {[%clk
0:00:20.5]} 24. Rad1 {[%clk 0:01:02]} 24... Qc4 {[%clk 0:00:20.6]} 25. Bf4
{[%clk 0:00:44.1]} 25... Qf7 {[%clk 0:00:18.6]} 26. Bxe5 {[%clk 0:00:41.9]}
26... fxe5 {[%clk 0:00:20.5]} 27. f6+ {[%clk 0:00:42.4]} 27... Kd7 {[%clk
0:00:19.3]} 28. Qh3+ {[%clk 0:00:42.4]} 28... Kc7 {[%clk 0:00:19.8]} 29. Ne6+
{[%clk 0:00:36.5]} 29... Kb7 {[%clk 0:00:20.8]} 30. Rxd6 {[%clk 0:00:37.3]}
30... Rac8 {[%clk 0:00:14.1]} 31. Rd7+ {[%clk 0:00:32.2]} 31... Qxd7 {[%clk
0:00:13.3]} 32. Nc5+ {[%clk 0:00:33.8]} 32... Rxc5 {[%clk 0:00:13.9]} 33. Qxd7+
{[%clk 0:00:34.6]} 33... Rc7 {[%clk 0:00:14.4]} 34. Qd5+ {[%clk 0:00:34.6]}
34... Nc6 {[%clk 0:00:13.6]} 35. f7 {[%clk 0:00:23.6]} 35... Rf8 {[%clk
0:00:13.8]} 36. Rf6 {[%clk 0:00:19.7]} 36... a6 {[%clk 0:00:13.9]} 37. g4 {[%clk
0:00:19.8]} 37... b5 {[%clk 0:00:13.9]} 38. g5 {[%clk 0:00:20.2]} 38... Kb6
{[%clk 0:00:12.4]} 39. h4 {[%clk 0:00:21]} 39... a5 {[%clk 0:00:13.1]} 40. h5
{[%clk 0:00:21.7]} 40... a4 {[%clk 0:00:13.8]} 41. g6 {[%clk 0:00:22.4]} 41...
hxg6 {[%clk 0:00:15.7]} 42. hxg6 {[%clk 0:00:24.2]} 42... Rh8+ {[%clk
0:00:17.1]} 43. Kg1 {[%clk 0:00:25.7]} 43... Kb7 {[%clk 0:00:16.3]} 44. g7
{[%clk 0:00:25.8]} 44... Rcc8 {[%clk 0:00:17.6]} 1-0

[Event "*** Titled Tuesday 3|2 Blitz (Early)"]
[Site "Chess.com"]
[Date "2016.12.06"]
[Round "7"]
[White "VitaliyBernadskiy"]
[Black "Noukii"]
[Result "1/2-1/2"]
[WhiteElo "2587"]
[BlackElo "2663"]
[TimeControl "180+2"]
[EndTime "12:32:14 PST"]
[Termination "Game drawn by agreement"]

1. d4 {[%clk 0:02:56.9]} 1... d5 {[%clk 0:03:01.1]} 2. c4 {[%clk 0:02:57.6]}
2... c6 {[%clk 0:03:02.8]} 3. cxd5 {[%clk 0:02:58.2]} 3... cxd5 {[%clk
0:03:03.5]} 4. Bf4 {[%clk 0:02:59.7]} 4... Nc6 {[%clk 0:03:04.5]} 5. e3 {[%clk
0:03:00.9]} 5... Nf6 {[%clk 0:03:05.8]} 6. Nc3 {[%clk 0:03:02.3]} 6... a6 {[%clk
0:03:05.8]} 7. Rc1 {[%clk 0:03:00.5]} 7... Bg4 {[%clk 0:03:04.8]} 8. f3 {[%clk
0:03:01.4]} 8... Bd7 {[%clk 0:03:05.2]} 9. Bd3 {[%clk 0:02:59]} 9... g6 {[%clk
0:03:06.7]} 10. Bg5 {[%clk 0:02:37.7]} 10... Bg7 {[%clk 0:03:02.5]} 11. Bxf6
{[%clk 0:02:37.1]} 11... Bxf6 {[%clk 0:03:04.4]} 12. Nxd5 {[%clk 0:02:37.7]}
12... Bg7 {[%clk 0:03:03.4]} 13. Nc3 {[%clk 0:02:38.1]} 13... O-O {[%clk
0:02:58.3]} 14. f4 {[%clk 0:02:36.3]} 14... Qb6 {[%clk 0:02:43.6]} 15. Nge2
{[%clk 0:02:29.9]} 15... Rad8 {[%clk 0:02:30.5]} 16. Qd2 {[%clk 0:02:20.5]}
16... Bg4 {[%clk 0:02:21]} 17. h3 {[%clk 0:02:11.2]} 17... Bxe2 {[%clk
0:02:18.9]} 18. Nxe2 {[%clk 0:02:12.6]} 18... Bh6 {[%clk 0:01:48.5]} 19. Be4
{[%clk 0:02:10.6]} 19... e5 {[%clk 0:01:18.5]} 20. fxe5 {[%clk 0:02:03.8]} 20...
Nxe5 {[%clk 0:01:17]} 21. O-O {[%clk 0:02:04.3]} 21... f5 {[%clk 0:01:17.4]} 22.
Bd3 {[%clk 0:01:56.4]} 22... Rfe8 {[%clk 0:01:14.8]} 23. Nf4 {[%clk 0:01:51.6]}
23... Rxd4 {[%clk 0:01:01.3]} 24. exd4 {[%clk 0:01:43.2]} 24... Qxd4+ {[%clk
0:01:02.4]} 25. Kh1 {[%clk 0:01:26.7]} 25... Bxf4 {[%clk 0:01:03.4]} 26. Rxf4
{[%clk 0:01:25.8]} 26... Qxd3 {[%clk 0:01:05]} 27. Rd1 {[%clk 0:01:20.8]} 27...
Qxd2 {[%clk 0:01:03.2]} 28. Rxd2 {[%clk 0:01:22.4]} 28... Re7 {[%clk 0:01:04.8]}
29. Re2 {[%clk 0:01:13.8]} 29... Kg7 {[%clk 0:01:02.5]} 30. g4 {[%clk
0:01:09.6]} 30... Kf6 {[%clk 0:00:54.8]} 31. gxf5 {[%clk 0:01:10.7]} 31... g5
{[%clk 0:00:55]} 32. Rf1 {[%clk 0:01:09.4]} 32... Rd7 {[%clk 0:00:55.6]} 33. Kg2
{[%clk 0:01:05.9]} 33... h5 {[%clk 0:00:55.2]} 34. a4 {[%clk 0:01:01.5]} 34...
a5 {[%clk 0:00:52.6]} 35. Rc1 {[%clk 0:00:59.1]} 35... Rd5 {[%clk 0:00:47.5]}
36. Rf1 {[%clk 0:00:55.9]} 36... Rd4 {[%clk 0:00:44.8]} 37. Re3 {[%clk
0:00:51.2]} 37... b6 {[%clk 0:00:34.2]} 38. b3 {[%clk 0:00:49.5]} 38... Rd6
{[%clk 0:00:35.1]} 39. Rf2 {[%clk 0:00:50.1]} 39... Rd5 {[%clk 0:00:36.1]} 40.
Rc3 {[%clk 0:00:48.3]} 40... Rd6 {[%clk 0:00:35.7]} 41. Kg3 {[%clk 0:00:44.6]}
41... h4+ {[%clk 0:00:36.2]} 42. Kg2 {[%clk 0:00:44.8]} 42... Nd3 {[%clk
0:00:37.8]} 43. Rf1 {[%clk 0:00:40.5]} 43... Nf4+ {[%clk 0:00:38.6]} 44. Kf3
{[%clk 0:00:32.6]} 44... Kxf5 {[%clk 0:00:40.2]} 45. Ke3 {[%clk 0:00:27.7]}
45... Re6+ {[%clk 0:00:41.6]} 46. Kd2 {[%clk 0:00:24.9]} 46... Rd6+ {[%clk
0:00:42.7]} 47. Kc2 {[%clk 0:00:25.3]} 47... Ke4 {[%clk 0:00:43.9]} 48. Rc4+
{[%clk 0:00:26.1]} 48... Kf5 {[%clk 0:00:42.8]} 49. b4 {[%clk 0:00:24.9]} 49...
axb4 {[%clk 0:00:43.9]} 50. Rxb4 {[%clk 0:00:26.5]} 50... Kg6 {[%clk 0:00:42.2]}
51. Rbxf4 {[%clk 0:00:26.4]} 51... gxf4 {[%clk 0:00:44.1]} 52. Rxf4 {[%clk
0:00:27.9]} 52... Kg5 {[%clk 0:00:45.7]} 53. Rg4+ {[%clk 0:00:29.2]} 53... Kh5
{[%clk 0:00:46.9]} 54. Rb4 {[%clk 0:00:30]} 54... Rf6 {[%clk 0:00:47.4]} 55. Kd1
{[%clk 0:00:25.7]} 55... Kg5 {[%clk 0:00:46]} 56. Rg4+ {[%clk 0:00:25.6]} 56...
Kh5 {[%clk 0:00:46.8]} 1/2-1/2